lending/lending_fUSD_20250114
["ID","MTS","AMOUNT","RATE_DAILY","PERIOD"]
[348957076,1736891450756,-1530.52,0.00011641,2]
[348957077,1736891450766,-633.52,0.00011641,2]
[348957078,1736891450775,-864.94,0.00011641,2]
[348957079,1736891450784,-1834.54924748,0.00011659,2]
[348957080,1736891450794,-161.818,0.0001168,2]
[348957081,1736891450804,-150.28683774,0.00011699,2]
[348957082,1736891450813,-500.0,0.0001178,2]
[348957083,1736891450822,-1600.0,0.0001178,2]
[348957084,1736891450832,-4400.0,0.0001178,2]
[348957085,1736891450842,-153.92585718,0.0001179,2]
[348957086,1736891450852,-5523.0,0.000118,5]
[348957087,1736891450861,-701.58,0.00011819,2]
[348957088,1736891450870,-701.58,0.00011819,2]
[348957089,1736891450880,-701.58,0.00011879,2]
[348957090,1736891450893,-1309.34,0.00011912,2]
[348957091,1736891450902,-4270.49,0.00011912,2]
[348957092,1736891450912,-510.42,0.00011912,2]
[348957093,1736891450922,-500.0,0.00011912,2]
[348957094,1736891450931,-697.63,0.00011912,2]
[348957095,1736891450941,-500.0,0.00011912,2]
[348957096,1736891450951,-621.87,0.00011912,2]
[348957097,1736891450960,-500.0,0.00011912,2]
[348957098,1736891450969,-1141.61,0.00011912,2]
[348957099,1736891450978,-2482.98,0.00011912,2]
[348957100,1736891450988,-736.68,0.00011912,2]
[348957101,1736891450997,-500.0,0.00011912,2]
[348957102,1736891451006,-1131.64,0.00011912,2]
[348957103,1736891451016,-500.0,0.00011912,2]
[348957104,1736891451025,-906.71,0.00011912,2]
[348957105,1736891451035,-500.0,0.00011912,2]
[348957106,1736891451045,-677.37,0.00011913,2]
[348957107,1736891451055,-500.0,0.00011913,2]
[348957108,1736891451064,-530.18,0.00011913,2]
[348957109,1736891451074,-500.0,0.00011913,2]
[348957110,1736891451083,-500.0,0.00011913,2]
[348957111,1736891451092,-500.0,0.00011913,2]
[348957112,1736891451101,-500.0,0.00011913,2]
[348957113,1736891451111,-500.0,0.00011913,2]
[348957114,1736891451121,-500.0,0.00011913,2]
[348957115,1736891451131,-500.0,0.00011913,2]
[348957116,1736891451141,-500.0,0.00011913,2]
[348957117,1736891451151,-500.0,0.00011913,2]
[348957118,1736891451161,-500.0,0.00011913,2]
[348957119,1736891451170,-500.0,0.00011913,2]
[348957120,1736891451180,-500.0,0.00011913,2]
[348957121,1736891451189,-500.0,0.00011913,2]
[348957122,1736891451198,-529.66,0.00011913,2]
[348957123,1736891451208,-206.72,0.00011913,2]
[348957124,1736891451218,-547.56,0.00011913,2]
[348957125,1736891451228,-500.0,0.00011913,2]
[348957126,1736891451237,-500.0,0.00011913,2]
[348957127,1736891451246,-299.13,0.00011913,2]
[348957128,1736891451256,-500.0,0.00011913,2]
[348957129,1736891451265,-500.0,0.00011913,2]
[348957130,1736891451274,-500.0,0.00011913,2]
[348957131,1736891451283,-500.0,0.00011913,2]
[348957132,1736891451292,-502.94,0.00011913,2]
[348957133,1736891451301,-500.0,0.00011913,2]
[348957134,1736891451310,-505.85,0.00011913,2]
[348957135,1736891451320,-676.9,0.00011913,2]
[348957136,1736891451330,-500.0,0.00011913,2]
[348957137,1736891451340,-417.63118533,0.00011913,2]
[348957138,1736891451349,-500.0,0.00011913,2]
[348957139,1736891451359,-402.46,0.00011913,2]
[348957140,1736891451369,-500.0,0.00011913,2]
[348957141,1736891451379,-572.46,0.00011913,2]
[348957142,1736891451392,-1307.13,0.00011913,2]
[348957143,1736891451401,-2442.36,0.00011913,2]
[348957144,1736891451410,-1440.33,0.00011913,2]
[348957145,1736891451420,-1025.22,0.00011913,2]
[348957146,1736891451431,-500.0,0.00011913,2]
[348957147,1736891451441,-500.0,0.00011913,2]
[348957148,1736891451451,-646.08,0.00011913,2]
[348957149,1736891451463,-1647.32,0.00011913,2]
[348957150,1736891451473,-1686.77,0.00011913,2]
[348957151,1736891451483,-575.89,0.00011913,2]
[348957152,1736891451493,-500.0,0.00011913,2]
[348957153,1736891451502,-500.0,0.00011913,2]
[348957154,1736891451511,-654.19,0.00011913,2]
[348957155,1736891451522,-500.0,0.00011913,2]
[348957156,1736891451532,-1923.99,0.00011913,2]
[348957157,1736891451542,-500.0,0.00011913,2]
[348957158,1736891451553,-500.0,0.00011913,2]
[348957159,1736891451563,-500.0,0.00011913,2]
[348957160,1736891451572,-232.15242618,0.00011913,2]
[348957161,1736891451581,-1054.58,0.00011913,2]
[348957162,1736891451591,-618.28,0.00011913,2]
[348957163,1736891451602,-500.0,0.00011913,2]
[348957164,1736891451611,-536.29,0.00011913,2]
[348957165,1736891451621,-500.0,0.00011913,2]
[348957166,1736891451631,-500.0,0.00011913,2]
[348957167,1736891451641,-644.34,0.00011913,2]
[348957168,1736891451650,-500.0,0.00011913,2]
[348957169,1736891451660,-500.0,0.00011914,2]
[348957170,1736891451669,-500.0,0.00011914,2]
[348957171,1736891451679,-500.0,0.00011914,2]
[348957172,1736891451689,-537.48,0.00011914,2]
[348957173,1736891451700,-500.0,0.00011914,2]
[348957174,1736891451709,-500.0,0.00011914,2]
[348957175,1736891451719,-671.07,0.00011914,2]
[348957176,1736891451729,-500.0,0.00011914,2]
[348957177,1736891451738,-500.0,0.00011914,2]
[348957178,1736891451748,-708.5,0.00011914,2]
[348957179,1736891451758,-640.19,0.00011914,2]
[348957180,1736891451767,-580.74,0.00011914,2]
[348957181,1736891451776,-500.0,0.00011914,2]
[348957182,1736891451786,-500.0,0.00011914,2]
[348957183,1736891451797,-510.98,0.00011914,2]
[348957184,1736891451806,-500.0,0.00011914,2]
[348957185,1736891451815,-500.0,0.00011914,2]
[348957186,1736891451824,-500.0,0.00011914,2]
[348957187,1736891451833,-916.49,0.00011914,2]
[348957188,1736891451842,-500.0,0.00011914,2]
[348957189,1736891451852,-500.0,0.00011914,2]
[348957190,1736891451862,-512.52,0.00011914,2]
[348957191,1736891451871,-500.0,0.00011914,2]
[348957192,1736891451882,-500.0,0.00011914,2]
[348957193,1736891451892,-500.0,0.00011914,2]
[348957194,1736891451903,-519.97,0.00011914,2]
[348957195,1736891451913,-909.77,0.00011914,2]
[348957196,1736891451923,-585.3,0.00011914,2]
[348957197,1736891451932,-1478.34,0.00011914,2]
[348957198,1736891451942,-567.99,0.00011914,2]
[348957199,1736891451952,-618.91,0.00011914,2]
[348957200,1736891451962,-852.16,0.00011914,2]
[348957201,1736891451971,-500.0,0.00011914,2]
[348957202,1736891451981,-633.47,0.00011914,2]
[348957203,1736891451991,-667.72,0.00011914,2]
[348957204,1736891452001,-715.924744,0.00011914,2]
[348957205,1736891452011,-701.58,0.00011914,2]
[348957206,1736891452021,-699.872373,0.00011914,2]
[348957207,1736891452031,-829.68,0.00011914,2]
[348957208,1736891452042,-2453.68,0.00011914,2]
[348957209,1736891452052,-808.67,0.00011914,2]
[348957210,1736891452061,-1223.1,0.00011914,2]
[348957211,1736891452071,-1219.13,0.00011914,2]
[348957212,1736891452081,-740.59,0.00011914,2]
[348957213,1736891452091,-500.0,0.00011914,2]
[348957214,1736891452101,-678.97,0.00011914,2]
[348957215,1736891452111,-500.0,0.00011914,2]
[348957216,1736891452120,-625.23,0.00011914,2]
[348957217,1736891452131,-500.0,0.00011914,2]
[348957218,1736891452141,-914.29,0.00011915,2]
[348957219,1736891452150,-500.0,0.00011915,2]
[348957220,1736891452160,-840.68,0.00011915,2]
[348957221,1736891452170,-540.23,0.00011915,2]
[348957222,1736891452179,-1105.15,0.00011915,2]
[348957223,1736891452189,-500.0,0.00011915,2]
[348957224,1736891452198,-500.0,0.00011915,2]
[348957225,1736891452207,-590.82,0.00011915,2]
[348957226,1736891452216,-500.0,0.00011915,2]
[348957227,1736891452226,-511.08,0.00011915,2]
[348957228,1736891452236,-500.0,0.00011915,2]
[348957229,1736891452245,-768.39,0.00011915,2]
[348957230,1736891452254,-1008.64,0.00011915,2]
[348957231,1736891452263,-907.53,0.00011915,2]
[348957232,1736891452272,-2126.01,0.00011915,2]
[348957233,1736891452282,-4406.64,0.00011915,2]
[348957234,1736891452292,-700.41,0.00011915,2]
[348957235,1736891452302,-507.86,0.00011915,2]
[348957236,1736891452312,-1530.52,0.00011915,2]
[348957237,1736891452321,-633.52,0.00011915,2]
[348957238,1736891452332,-864.94,0.00011915,2]
[348957239,1736891452342,-150.28683774,0.00011949,2]
[348957240,1736891452512,-200.0,0.00011966,2]
[348957241,1736891452548,-2863.80806977,0.00011967,2]
[348957242,1736891452558,-337.13597393,0.00011968,2]
[348957243,1736891452568,-1015.89,0.00011972,2]
[348957244,1736891452579,-200.0,0.00011972,2]
[348957245,1736891452588,-337.13597393,0.00011972,2]
[348957246,1736891452598,-2863.80806977,0.00011972,2]
[348957247,1736891452608,-2863.80806977,0.00011973,2]
[348957248,1736891452618,-200.0,0.00011973,2]
[348957249,1736891452627,-337.13597393,0.00011974,2]
[348957250,1736891452638,-8430.0958691,0.00011977,2]
[348957251,1736891452647,-8430.0958691,0.00011979,2]
[348957252,1736891452657,-2863.80806977,0.00011979,2]
[348957253,1736891452667,-8430.0958691,0.0001198,2]
[348957254,1736891452676,-8430.0958691,0.00011981,2]
[348957255,1736891452686,-337.13597393,0.00011983,2]
[348957256,1736891452695,-8423.53165737,0.00011984,2]
[348957257,1736891452715,-6.56421173,0.00011984,2]
[348957258,1736891452725,-337.13597393,0.00011985,2]
[348957259,1736891452734,-183.27342846,0.00011985,2]
[348957260,1736891452766,-304.52999997,0.00011092,2]
[348957261,1736891452777,-231.56000003,0.00011092,2]
[348957262,1736891452787,-2727.71,0.00011914,2]
[348957263,1736891452797,-1967.70558584,0.00011985,2]
[348957264,1736891453091,-536.09,0.00011366,2]
[348957265,1736891453102,-902.94822729,0.0001164,2]
[348957266,1736891453115,-432.75177271,0.0001164,2]
[348957267,1736891453126,-536.09,0.0001164,2]
[348957268,1736891453137,-32.09665208,0.00011914,2]
[348957269,1736891453197,-1303.60334792,0.00011914,2]
[348957270,1736891453207,-712.82905547,0.00011985,2]
[348957271,1736891453217,-429.93842545,0.00011985,2]
[348957272,1736891453228,-337.13597393,0.00011986,2]
[348957273,1736891453237,-337.13597393,0.00011988,2]
[348957274,1736891453248,-8430.0958691,0.0001199,2]
[348957275,1736891453258,-337.13597393,0.00011991,2]
[348957276,1736891453268,-337.13597393,0.00011991,2]
[348957277,1736891453278,-200.0,0.00011991,2]
[348957278,1736891453288,-200.0,0.00011991,2]
[348957279,1736891453298,-337.13597393,0.00011992,2]
[348957280,1736891453307,-2863.80806977,0.00011997,2]
[348957281,1736891453316,-337.13597393,0.00011999,2]
[348957282,1736891453327,-337.13597393,0.00011999,2]
[348957283,1736891453337,-1834.54924748,0.00012038,2]
[348957284,1736891453347,-200.0,0.00012055,2]
[348957285,1736891453358,-166.73794239,0.00012059,2]
[348957286,1736891453368,-5706.93653457,0.00012072,4]
[348957287,1736891453378,-153.92585718,0.00012075,2]
[348957288,1736891453393,-500.0,0.00012078,2]
[348957289,1736891453406,-1150.97303411,0.0001208,2]
[348957290,1736891453416,-245.95,0.0001211,2]
[348957291,1736891453425,-26226.53223066,0.00012116,2]
[348957292,1736891453460,-536.09,0.00011914,2]
[348957293,1736891453470,-180.74404982,0.00012116,2]
[348957305,1736892606961,331.2,8.219e-05,2]
[348957313,1736892632360,-250.0,9.791e-05,2]
[348957314,1736892632370,-76.75996925,9.817e-05,2]
[348957315,1736892632381,-293.59003075,9.817e-05,2]
[348957316,1736892632390,-25.8092779,9.821e-05,2]
[348957317,1736892632443,-343.6207221,9.821e-05,2]
[348957318,1736892632453,-1000.0,9.893e-05,2]
[348957319,1736892632462,-167.27,9.982e-05,2]
[348957320,1736892632471,-50000.0,9.982e-05,2]
[348957321,1736892632480,-3424.16192075,0.00010073,4]
[348957322,1736892632494,-981.56,0.00010134,2]
[348957323,1736892632504,-168.77,0.00010137,2]
[348957324,1736892632514,-500.0,0.00010269,2]
[348957325,1736892632523,-1121.69,0.00010269,2]
[348957326,1736892632532,-500.0,0.00010269,2]
[348957327,1736892632540,-655.25,0.0001027,2]
[348957328,1736892632550,-500.0,0.0001027,2]
[348957329,1736892632559,-500.0,0.0001027,2]
[348957330,1736892632569,-1631.11,0.0001027,2]
[348957331,1736892632578,-718.04,0.0001027,2]
[348957332,1736892632587,-185.71,0.000103,2]
[348957333,1736892632596,-2629.1465,0.00010444,2]
[348957334,1736892632606,-5377.8791,0.00010445,2]
[348957335,1736892632615,-331.2,0.00010465,2]
[348957336,1736892632624,-150.0,0.00010543,2]
[348957337,1736892632634,-500.0,0.00010543,2]
[348957338,1736892632643,-1121.69,0.00010543,2]
[348957339,1736892632652,-500.0,0.00010543,2]
[348957340,1736892632661,-1538.03,0.00010544,2]
[348957341,1736892632670,-889.07,0.00010544,2]
[348957342,1736892632679,-2267.64,0.00010544,2]
[348957343,1736892632688,-2819.62,0.00010544,2]
[348957344,1736892632697,-1179.45,0.00010544,2]
[348957345,1736892632706,-2103.57,0.00010544,2]
[348957346,1736892632715,-733.95,0.00010544,2]
[348957347,1736892632724,-525.94,0.00010544,2]
[348957348,1736892632734,-827.69,0.00010544,2]
[348957349,1736892632743,-655.25,0.00010544,2]
[348957350,1736892632753,-500.0,0.00010544,2]
[348957351,1736892632764,-603.53,0.00010544,2]
[348957352,1736892632773,-708.63,0.00010544,2]
[348957353,1736892632783,-1022.41,0.00010544,2]
[348957354,1736892632792,-500.0,0.00010544,2]
[348957355,1736892632802,-500.0,0.00010544,2]
[348957356,1736892632812,-582.62,0.00010544,2]
[348957358,1736892632821,-1631.11,0.00010544,2]
[348957360,1736892632832,-718.04,0.00010544,2]
[348957361,1736892632842,-161.85630628,0.00010718,2]
[348957362,1736892632851,-18298.6233,0.00010718,2]
[348957363,1736892632861,-500.0,0.00010816,2]
[348957364,1736892632872,-500.0,0.00010816,2]
[348957365,1736892632882,-500.0,0.00010816,2]
[348957366,1736892632892,-500.0,0.00010816,2]
[348957367,1736892632902,-500.0,0.00010816,2]
[348957368,1736892632911,-500.0,0.00010816,2]
[348957369,1736892632921,-500.0,0.00010816,2]
[348957370,1736892632931,-500.0,0.00010816,2]
[348957371,1736892632940,-500.0,0.00010816,2]
[348957372,1736892632950,-500.0,0.00010816,2]
[348957373,1736892632959,-500.0,0.00010816,2]
[348957375,1736892632968,-500.0,0.00010816,2]
[348957377,1736892632978,-1002.74,0.00010817,2]
[348957379,1736892632987,-983.27,0.00010817,2]
[348957381,1736892632996,-500.0,0.00010817,2]
[348957382,1736892633006,-500.0,0.00010817,2]
[348957384,1736892633016,-500.0,0.00010817,2]
[348957385,1736892633027,-500.0,0.00010817,2]
[348957386,1736892633036,-500.0,0.00010817,2]
[348957387,1736892633046,-500.0,0.00010817,2]
[348957388,1736892633056,-500.0,0.00010817,2]
[348957389,1736892633066,-500.0,0.00010817,2]
[348957390,1736892633076,-500.0,0.00010817,2]
[348957391,1736892633085,-500.0,0.00010817,2]
[348957392,1736892633096,-500.0,0.00010817,2]
[348957393,1736892633106,-500.0,0.00010817,2]
[348957394,1736892633115,-500.0,0.00010817,2]
[348957395,1736892633125,-500.0,0.00010817,2]
[348957396,1736892633135,-500.0,0.00010817,2]
[348957397,1736892633145,-500.0,0.00010817,2]
[348957398,1736892633154,-500.0,0.00010817,2]
[348957399,1736892633164,-500.0,0.00010817,2]
[348957400,1736892633174,-500.0,0.00010817,2]
[348957401,1736892633184,-571.15,0.00010817,2]
[348957402,1736892633194,-500.0,0.00010817,2]
[348957403,1736892633204,-524.65,0.00010817,2]
[348957404,1736892633214,-500.0,0.00010817,2]
[348957405,1736892633224,-500.0,0.00010817,2]
[348957406,1736892633233,-500.0,0.00010817,2]
[348957407,1736892633244,-400.47081951,0.00010817,2]
[348957408,1736892633254,-500.0,0.00010817,2]
[348957409,1736892633264,-500.0,0.00010817,2]
[348957410,1736892633273,-500.0,0.00010817,2]
[348957411,1736892633283,-500.0,0.00010817,2]
[348957412,1736892633292,-500.0,0.00010817,2]
[348957413,1736892633301,-500.0,0.00010817,2]
[348957414,1736892633311,-500.0,0.00010817,2]
[348957415,1736892633321,-500.0,0.00010817,2]
[348957416,1736892633331,-500.0,0.00010817,2]
[348957417,1736892633340,-500.0,0.00010817,2]
[348957418,1736892633350,-500.0,0.00010817,2]
[348957419,1736892633360,-500.0,0.00010817,2]
[348957420,1736892633370,-515.27,0.00010817,2]
[348957421,1736892633380,-500.0,0.00010817,2]
[348957422,1736892633390,-500.0,0.00010817,2]
[348957423,1736892633400,-500.0,0.00010817,2]
[348957424,1736892633409,-500.0,0.00010817,2]
[348957425,1736892633419,-1121.69,0.00010817,2]
[348957426,1736892633428,-500.0,0.00010817,2]
[348957427,1736892633438,-1538.03,0.00010818,2]
[348957428,1736892633447,-889.07,0.00010818,2]
[348957429,1736892633457,-2267.64,0.00010818,2]
[348957430,1736892633467,-2819.62,0.00010818,2]
[348957431,1736892633476,-1179.45,0.00010818,2]
[348957432,1736892633485,-2103.57,0.00010818,2]
[348957433,1736892633495,-733.95,0.00010818,2]
[348957434,1736892633504,-525.94,0.00010818,2]
[348957435,1736892633514,-827.69,0.00010818,2]
[348957436,1736892633524,-655.25,0.00010818,2]
[348957437,1736892633533,-500.0,0.00010818,2]
[348957438,1736892633543,-708.63,0.00010818,2]
[348957439,1736892633553,-1022.41,0.00010818,2]
[348957440,1736892633563,-500.0,0.00010818,2]
[348957441,1736892633572,-582.62,0.00010818,2]
[348957442,1736892633583,-1631.11,0.00010818,2]
[348957443,1736892633593,-718.04,0.00010818,2]
[348957444,1736892633603,-186.54367905,0.000109,2]
[348957445,1736892633613,-1617.89694336,0.000109,2]
[348957446,1736892633623,-161.85630626,0.00010912,2]
[348957447,1736892633632,-3781.0722,0.0001099,2]
[348957448,1736892633642,-550.0,0.00011,2]
[348957449,1736892633652,-370.35,0.00011045,2]
[348957450,1736892633662,-500.0,0.00011089,2]
[348957451,1736892633671,-1206.68,0.00011089,2]
[348957452,1736892633681,-584.28,0.00011089,2]
[348957453,1736892633690,-1317.09,0.00011089,2]
[348957454,1736892633699,-1171.05,0.00011089,2]
[348957455,1736892633709,-516.93,0.00011089,2]
[348957456,1736892633719,-3756.96,0.00011089,2]
[348957457,1736892633728,-877.95,0.00011089,2]
[348957458,1736892633740,-587.22,0.00011089,2]
[348957459,1736892633750,-500.0,0.00011089,2]
[348957460,1736892633763,-500.0,0.00011089,2]
[348957461,1736892633772,-500.0,0.00011089,2]
[348957462,1736892633782,-1507.13,0.00011089,2]
[348957463,1736892633791,-630.16,0.00011089,2]
[348957464,1736892633801,-500.0,0.00011089,2]
[348957465,1736892633812,-500.0,0.00011089,2]
[348957466,1736892633821,-500.0,0.00011089,2]
[348957467,1736892633831,-1026.43,0.00011089,2]
[348957468,1736892633842,-174.90753587,0.00011089,2]
[348957469,1736892633851,-599.86,0.00011089,2]
[348957470,1736892634092,-797.6,0.00011089,2]
[348957471,1736892634103,-500.0,0.00011089,2]
[348957472,1736892634113,-951.18,0.00011089,2]
[348957473,1736892634123,-2252.65,0.00011089,2]
[348957474,1736892634132,-500.0,0.00011089,2]
[348957475,1736892634142,-500.0,0.00011089,2]
[348957476,1736892634151,-500.0,0.00011089,2]
[348957477,1736892634162,-500.0,0.00011089,2]
[348957478,1736892634171,-558.92,0.00011089,2]
[348957479,1736892634180,-663.43,0.00011089,2]
[348957480,1736892634190,-1861.33,0.00011089,2]
[348957481,1736892634199,-500.0,0.00011089,2]
[348957482,1736892634209,-500.0,0.0001109,2]
[348957483,1736892634219,-500.0,0.0001109,2]
[348957484,1736892634228,-500.0,0.0001109,2]
[348957485,1736892634237,-500.0,0.0001109,2]
[348957486,1736892634247,-500.0,0.0001109,2]
[348957487,1736892634256,-500.0,0.0001109,2]
[348957488,1736892634266,-500.0,0.0001109,2]
[348957489,1736892634275,-500.0,0.0001109,2]
[348957490,1736892634285,-500.0,0.0001109,2]
[348957491,1736892634294,-514.75,0.0001109,2]
[348957492,1736892634303,-500.0,0.0001109,2]
[348957493,1736892634313,-500.0,0.0001109,2]
[348957494,1736892634322,-500.0,0.0001109,2]
[348957495,1736892634332,-500.0,0.0001109,2]
[348957496,1736892634342,-500.0,0.0001109,2]
[348957497,1736892634351,-158.916183,0.0001109,2]
[348957498,1736892634360,-500.0,0.0001109,2]
[348957499,1736892634369,-500.0,0.0001109,2]
[348957500,1736892634380,-500.0,0.0001109,2]
[348957501,1736892634389,-500.0,0.0001109,2]
[348957502,1736892634399,-500.0,0.0001109,2]
[348957503,1736892634408,-500.0,0.0001109,2]
[348957504,1736892634418,-500.0,0.0001109,2]
[348957505,1736892634427,-500.0,0.0001109,2]
[348957506,1736892634437,-478.59621757,0.0001109,2]
[348957507,1736892634446,-500.0,0.0001109,2]
[348957508,1736892634456,-500.0,0.0001109,2]
[348957509,1736892634465,-500.0,0.0001109,2]
[348957510,1736892634475,-500.0,0.0001109,2]
[348957511,1736892634489,-500.0,0.0001109,2]
[348957512,1736892634499,-500.0,0.0001109,2]
[348957513,1736892634509,-500.0,0.0001109,2]
[348957514,1736892634520,-500.0,0.0001109,2]
[348957515,1736892634529,-500.0,0.0001109,2]
[348957516,1736892634540,-500.0,0.0001109,2]
[348957517,1736892634550,-500.0,0.0001109,2]
[348957518,1736892634560,-500.0,0.0001109,2]
[348957519,1736892634570,-500.0,0.0001109,2]
[348957520,1736892634580,-500.0,0.0001109,2]
[348957521,1736892634590,-557.04,0.0001109,2]
[348957522,1736892634599,-500.0,0.0001109,2]
[348957523,1736892634608,-500.0,0.0001109,2]
[348957524,1736892634618,-500.0,0.0001109,2]
[348957525,1736892634627,-500.0,0.0001109,2]
[348957526,1736892634636,-500.0,0.0001109,2]
[348957527,1736892634645,-500.0,0.0001109,2]
[348957528,1736892634654,-500.0,0.0001109,2]
[348957529,1736892634663,-500.0,0.0001109,2]
[348957530,1736892634672,-500.0,0.0001109,2]
[348957531,1736892634681,-500.0,0.0001109,2]
[348957532,1736892634690,-500.0,0.0001109,2]
[348957533,1736892634699,-500.0,0.0001109,2]
[348957534,1736892634708,-500.0,0.0001109,2]
[348957535,1736892634719,-500.0,0.0001109,2]
[348957536,1736892634731,-500.0,0.0001109,2]
[348957537,1736892634741,-500.0,0.0001109,2]
[348957538,1736892634753,-500.0,0.0001109,2]
[348957539,1736892634765,-500.0,0.0001109,2]
[348957540,1736892634775,-500.0,0.0001109,2]
[348957541,1736892634784,-500.0,0.0001109,2]
[348957542,1736892634794,-500.0,0.0001109,2]
[348957543,1736892634804,-500.0,0.0001109,2]
[348957544,1736892634814,-500.0,0.0001109,2]
[348957545,1736892634823,-500.0,0.0001109,2]
[348957546,1736892634833,-500.0,0.0001109,2]
[348957547,1736892634845,-500.0,0.0001109,2]
[348957548,1736892634855,-1014.87,0.0001109,2]
[348957549,1736892634865,-500.0,0.0001109,2]
[348957550,1736892634874,-500.0,0.0001109,2]
[348957551,1736892634883,-500.0,0.0001109,2]
[348957552,1736892634893,-817.82,0.0001109,2]
[348957553,1736892634902,-320.00676941,0.0001109,2]
[348957554,1736892634911,-500.0,0.0001109,2]
[348957555,1736892634920,-500.0,0.0001109,2]
[348957556,1736892634930,-500.0,0.0001109,2]
[348957557,1736892634940,-500.0,0.0001109,2]
[348957558,1736892634950,-500.0,0.0001109,2]
[348957559,1736892634959,-500.0,0.0001109,2]
[348957560,1736892634969,-500.0,0.0001109,2]
[348957561,1736892634978,-613.99,0.0001109,2]
[348957562,1736892634987,-500.0,0.0001109,2]
[348957563,1736892634997,-500.0,0.0001109,2]
[348957564,1736892635006,-500.0,0.0001109,2]
[348957565,1736892635015,-500.0,0.0001109,2]
[348957566,1736892635024,-500.0,0.0001109,2]
[348957567,1736892635033,-500.0,0.0001109,2]
[348957568,1736892635043,-500.0,0.0001109,2]
[348957569,1736892635052,-500.0,0.0001109,2]
[348957570,1736892635062,-500.0,0.0001109,2]
[348957571,1736892635071,-500.0,0.0001109,2]
[348957572,1736892635080,-500.0,0.0001109,2]
[348957573,1736892635089,-527.55,0.0001109,2]
[348957574,1736892635099,-2203.03,0.0001109,2]
[348957575,1736892635108,-500.0,0.0001109,2]
[348957576,1736892635117,-500.0,0.0001109,2]
[348957577,1736892635126,-500.0,0.0001109,2]
[348957578,1736892635135,-500.0,0.00011091,2]
[348957579,1736892635145,-500.0,0.00011091,2]
[348957580,1736892635154,-500.0,0.00011091,2]
[348957581,1736892635164,-500.0,0.00011091,2]
[348957582,1736892635174,-500.0,0.00011091,2]
[348957583,1736892635183,-500.0,0.00011091,2]
[348957584,1736892635192,-500.0,0.00011091,2]
[348957585,1736892635201,-500.0,0.00011091,2]
[348957586,1736892635210,-500.0,0.00011091,2]
[348957587,1736892635220,-500.0,0.00011091,2]
[348957588,1736892635231,-500.0,0.00011091,2]
[348957589,1736892635242,-500.0,0.00011091,2]
[348957590,1736892635254,-500.0,0.00011091,2]
[348957591,1736892635264,-270.13419617,0.00011091,2]
[348957592,1736892635275,-500.0,0.00011091,2]
[348957593,1736892635286,-500.0,0.00011091,2]
[348957594,1736892635296,-500.0,0.00011091,2]
[348957595,1736892635308,-500.0,0.00011091,2]
[348957596,1736892635317,-571.15,0.00011091,2]
[348957597,1736892635327,-500.0,0.00011091,2]
[348957598,1736892635336,-524.65,0.00011091,2]
[348957599,1736892635346,-500.0,0.00011091,2]
[348957600,1736892635355,-500.0,0.00011091,2]